bitfinex-derivatives/quotes_ETHF0:USTF0_20250627
["timestamp","ask_amount","ask_price","bid_price","bid_amount"]
[1751010885309,4.02927314,2439.0,2438.8,1.12635]
[1751010885605,4.02928314,2439.0,2438.8,0.7165]
[1751010885807,0.40984,2438.9,2438.7,6.495]
[1751010886012,2.95754314,2438.8,2438.7,6.90488]
[1751010886211,3.36740314,2438.8,2438.7,6.495]
[1751010886416,3.36740314,2438.8,2438.6,0.7241]
[1751010886714,3.36740314,2438.8,2438.6,1.13399]
[1751010887314,3.36740314,2438.8,2438.6,0.7241]
[1751010888314,3.36740314,2438.8,2438.6,1.13399]
[1751010888715,2.95754314,2438.8,2438.7,0.40988]
[1751010889712,3.61944314,2439.0,2438.9,0.40984]
[1751010889915,5.10215883,2439.0,2438.8,0.40985]
[1751010890213,4.02927314,2439.0,2438.8,0.40985]
[1751010890420,1.07313818,2438.9,2438.8,0.40985]
[1751010891611,1.07313818,2438.9,2438.7,0.40987]
[1751010891914,2.95754314,2438.8,2438.7,0.40987]
[1751010892110,2.95754314,2438.8,2438.6,1.13398]
[1751010892306,3.36740314,2438.8,2438.6,0.7241]
[1751010892708,2.95754314,2438.8,2438.6,1.13398]
[1751010893208,6.16534314,2438.8,2438.2,52.3918]
[1751010893507,6.16534314,2438.8,2438.5,0.40991]
[1751010893508,2.95754314,2438.6,2438.5,0.40991]
[1751010894816,3.2078,2438.8,2438.7,0.40988]
[1751010895114,6.57516314,2439.1,2438.8,0.40986]
[1751010895305,1.07357429,2439.0,2438.9,0.40984]
[1751010897015,6.57515314,2439.1,2438.9,0.40984]
[1751010897213,6.57516314,2439.1,2438.8,0.40985]
[1751010897414,2.95754314,2438.9,2438.8,1.12455]
[1751010897713,3.61762,2439.1,2438.9,0.40984]
[1751010897916,4.02977081,2439.0,2438.8,1.12455]
[1751010898214,2.95754314,2439.0,2438.8,1.12455]
[1751010898710,2.95754314,2439.0,2438.9,0.40984]
[1751010898905,4.02998315,2439.0,2438.9,0.40984]
[1751010899111,2.95754314,2439.0,2438.9,0.40984]
[1751010899709,3.2078,2439.1,2439.0,0.40983]
[1751010900008,4.28028922,2439.1,2439.0,0.40983]
[1751010900410,7.23783236,2439.1,2439.0,0.40983]
[1751010903315,3.2078,2439.4,2439.3,0.40977]
[1751010903617,4.28070032,2439.4,2439.3,0.40977]
[1751010903813,1.07290032,2439.4,2439.3,0.40977]
[1751010904212,1.07290032,2439.4,2439.3,1.77667]
[1751010906122,1.07290032,2439.4,2439.3,1.3669]
[1751010906321,1.07290032,2439.4,2439.3,6.495]
[1751010906522,2.95754314,2439.5,2439.3,6.90478]
[1751010906716,2.95754314,2439.5,2439.3,7.8619]
[1751010907019,2.95754314,2439.5,2439.3,8.27168]
[1751010907721,2.95754314,2439.7,2439.3,8.27168]
[1751010907909,1.0721462,2439.6,2439.3,8.27168]
[1751010908112,2.95754314,2439.7,2439.3,8.27168]
[1751010908925,3.36725314,2439.7,2439.4,1.341]
[1751010909423,0.40973,2439.6,2439.4,1.341]
[1751010910123,6.57504314,2439.8,2439.4,1.341]
[1751010910318,1.07108261,2439.7,2439.4,1.341]
[1751010910519,6.57504314,2439.8,2439.4,1.341]
[1751010910719,1.07084696,2439.7,2439.4,1.341]
[1751010910913,0.40971,2439.7,2439.4,1.341]
[1751010911113,6.57504314,2439.8,2439.4,7.831]
[1751010911314,1.0708426,2439.7,2439.4,7.831]
[1751010911528,0.40972,2439.7,2439.4,7.831]
[1751010912419,6.57504314,2439.8,2439.4,7.831]
[1751010912620,2.95754314,2439.6,2439.4,7.831]
[1751010912821,2.95754314,2439.6,2439.3,3.61758]
[1751010913128,2.95754314,2439.6,2439.4,0.40976]
[1751010913317,2.95754314,2439.6,2439.3,4.6267]
[1751010913522,2.95754314,2439.6,2439.4,8.31865]
[1751010913725,2.95754314,2439.6,2439.4,1.4189]
[1751010914126,2.95754314,2439.6,2439.4,8.31866]
[1751010914529,2.95754314,2439.6,2439.4,7.9089]
[1751010915029,2.95754314,2439.6,2439.4,8.31866]
[1751010915629,2.95754314,2439.6,2439.4,7.9089]
[1751010916136,2.95754314,2439.6,2439.4,8.31866]
[1751010917034,2.95754314,2439.6,2439.4,7.9089]
[1751010917438,2.95754314,2439.6,2439.4,8.31865]
[1751010917740,2.95754314,2439.6,2439.4,7.9089]
[1751010918037,2.95754314,2439.6,2439.4,8.31866]
[1751010918336,2.95754314,2439.6,2439.4,7.9089]
[1751010919343,3.2078,2439.8,2439.4,7.9089]
[1751010919548,0.6624,2440.0,2439.7,0.40971]
[1751010919945,0.6624,2440.0,2439.7,1.85201]
[1751010920348,0.6624,2440.0,2439.7,1.4423]
[1751010920849,0.6624,2440.0,2439.7,1.85201]
[1751010921047,1.06968143,2439.9,2439.7,1.4423]
[1751010921236,1.07206,2440.0,2439.7,1.4423]
[1751010921438,1.06968251,2439.9,2439.7,1.4423]
[1751010921744,0.6624,2440.0,2439.7,1.4423]
[1751010921946,1.06974227,2439.9,2439.7,1.85201]
[1751010922146,0.6624,2440.0,2439.7,1.85201]
[1751010922347,1.06987153,2439.9,2439.7,1.85201]
[1751010922543,0.6624,2440.0,2439.7,1.85201]
[1751010922746,4.02767472,2439.9,2439.7,1.4423]
[1751010922954,0.40969,2439.8,2439.6,3.2078]
[1751010923142,2.95754314,2439.7,2439.6,3.2078]
[1751010923341,2.95754314,2439.7,2439.5,6.489]
[1751010923538,4.36254314,2439.7,2439.5,6.489]
[1751010923754,0.7147,2439.6,2439.4,6.89875]
[1751010924352,0.7147,2439.6,2439.5,0.40974]
[1751010924551,0.7147,2439.6,2439.4,6.89875]
[1751010924746,0.7147,2439.6,2439.4,0.40975]
[1751010924949,0.7147,2439.6,2439.4,6.489]
[1751010925347,0.7147,2439.6,2439.4,6.89875]
[1751010925552,0.7147,2439.6,2439.5,0.40974]
[1751010925855,0.7147,2439.6,2439.4,6.89875]
[1751010927249,0.7147,2439.6,2439.4,6.489]
[1751010928052,0.7147,2439.6,2439.4,6.89876]
[1751010928551,0.7147,2439.6,2439.4,6.489]
[1751010928752,0.7147,2439.6,2439.4,6.89875]
[1751010929053,2.95754314,2439.7,2439.5,0.40974]
[1751010929254,5.2355,2440.1,2439.6,6.16534314]
[1751010929450,1.07301023,2440.0,2439.9,3.61748]
[1751010929654,3.889,2440.5,2440.1,0.40963]
[1751010929954,1.073284,2440.4,2440.2,0.40962]
[1751010930156,7.44362735,2440.8,2440.3,3.889]
[1751010930456,1.79559615,2440.7,2440.3,5.0162]
[1751010930651,1.07329615,2440.6,2440.3,4.6066]
[1751010930953,1.07329615,2440.5,2440.3,4.6066]
[1751010931258,1.07329615,2440.4,2440.3,4.6066]
[1751010932154,4.03083929,2440.4,2440.3,11.0956]
[1751010932355,4.03083929,2440.4,2440.3,6.489]
[1751010934359,1.07329615,2440.4,2440.3,6.488]
[1751010934559,7.53324314,2440.6,2440.3,6.488]
[1751010934865,1.07223378,2440.5,2440.2,0.40962]
[1751010935054,7.94280314,2440.6,2440.2,1.3649]
[1751010935259,1.07225346,2440.5,2440.2,1.3649]
[1751010935456,7.94280314,2440.6,2440.2,1.3649]
[1751010935658,1.07203358,2440.5,2440.2,1.77452]
[1751010935862,7.94280314,2440.6,2440.2,1.77452]
[1751010936053,1.07201528,2440.5,2440.2,1.77452]
[1751010936256,7.94280314,2440.6,2440.2,1.77452]
[1751010936451,1.07179052,2440.5,2440.3,6.488]
[1751010936650,6.16534314,2440.6,2440.3,6.89761]
[1751010937156,6.16534314,2440.6,2440.3,6.488]
[1751010937858,6.57490314,2440.6,2440.3,6.488]
[1751010938661,3.36710314,2440.6,2440.3,6.488]
[1751010939060,2.95754314,2440.6,2440.3,6.488]
[1751010939268,2.95754314,2440.6,2440.3,6.89761]
[1751010939460,2.95754314,2440.6,2440.3,6.488]
[1751010939963,2.95754314,2440.6,2440.3,6.89761]
[1751010940168,2.95754314,2440.6,2440.3,6.488]
[1751010940465,3.36710314,2440.6,2440.3,6.488]
[1751010942567,0.40958,2440.5,2440.3,6.488]
[1751010942958,2.95754314,2440.6,2440.3,6.488]
[1751010944166,1.13184,2440.7,2440.3,9.85514314]
[1751010944366,0.7223,2440.7,2440.3,9.85514314]
[1751010944666,0.7223,2440.7,2440.4,1.77339]
[1751010944864,0.7223,2440.7,2440.5,0.7166]
[1751010945061,1.13184,2440.7,2440.5,1.4227]
[1751010945266,0.7223,2440.7,2440.5,1.4227]
[1751010945970,3.61731,2440.9,2440.5,1.83227]
[1751010946169,0.40951,2440.9,2440.6,9.6878]
[1751010946463,2.95754314,2441.0,2440.6,9.6878]
[1751010946664,0.40951,2440.9,2440.6,9.6878]
[1751010947659,0.4095,2441.0,2440.6,35.13534]
[1751010947860,1.08288,2441.1,2440.6,36.0558]
[1751010948168,1.08288,2441.1,2440.7,0.40954]
[1751010948367,1.08288,2441.1,2440.7,1.73954]
[1751010948962,1.08288,2441.1,2440.7,1.33]
[1751010949762,0.6734,2441.1,2440.7,1.33]
[1751010949960,0.40951,2440.9,2440.7,1.33]
[1751010950167,0.40953,2440.8,2440.6,9.6878]
[1751010950369,0.40952,2440.9,2440.7,25.036]
[1751010950568,0.40951,2440.9,2440.7,25.036]
[1751010950868,0.40951,2440.9,2440.7,26.4348]
[1751010951070,3.63094314,2441.1,2440.7,26.4348]
[1751010951071,0.40952,2440.8,2440.7,26.4348]
[1751010951368,0.40952,2440.9,2440.7,25.036]
[1751010951567,0.40951,2440.9,2440.7,25.036]
[1751010952374,0.4095,2441.0,2440.7,25.036]
[1751010952670,0.40951,2440.9,2440.7,25.036]
[1751010952874,3.36705314,2440.9,2440.8,31.512]
[1751010953972,2.95754314,2440.9,2440.8,31.512]
[1751010954172,3.36705314,2440.9,2440.6,3.61735]
[1751010954375,0.40951,2440.9,2440.6,3.61735]
[1751010954568,0.40951,2440.9,2440.7,31.512]
[1751010954761,0.40951,2440.9,2440.6,3.61735]
[1751010954966,0.40951,2440.9,2440.7,31.511]
[1751010955874,0.4095,2441.0,2440.7,31.511]
[1751010956174,0.4095,2441.0,2440.6,3.61735]
[1751010956376,0.40951,2440.9,2440.7,31.51]
[1751010956571,3.36704314,2441.0,2440.7,31.51]
[1751010956764,0.40951,2440.9,2440.7,31.51]
[1751010957568,3.63094314,2441.1,2440.8,31.51]
[1751010957968,2.95754314,2440.9,2440.6,3.2078]
[1751010958166,2.95754314,2440.7,2440.6,3.2078]
[1751010958375,3.36706314,2440.9,2440.6,34.7168]
[1751010958567,3.36706314,2440.9,2440.7,31.509]
[1751010958970,3.36706314,2440.9,2440.8,31.509]
[1751010960075,3.36706314,2440.9,2440.6,3.61736]
[1751010960267,3.36706314,2440.9,2440.6,3.2078]
[1751010960664,0.40953,2440.8,2440.6,3.2078]
[1751010961070,2.95754314,2440.7,2440.5,1.4227]
[1751010961270,4.04939314,2440.7,2440.6,25.028]
[1751010961478,3.63984314,2440.7,2440.5,0.7061]
[1751010961778,3.63984314,2440.7,2440.5,32.2131]
[1751010961972,3.2078,2440.9,2440.5,35.17064314]
[1751010962278,3.2078,2440.9,2440.7,0.40954]
[1751010962575,3.2078,2440.9,2440.8,6.479]
[1751010964178,3.2078,2440.9,2440.6,1.09485]
[1751010964476,2.95754314,2440.8,2440.6,0.6853]
[1751010964676,3.67924314,2440.8,2440.6,0.6853]
[1751010965374,3.67924314,2440.8,2440.7,31.505]
[1751010965569,3.67924314,2440.8,2440.6,0.6853]
[1751010965969,4.08877314,2440.8,2440.5,0.7061]
[1751010966284,3.2078,2441.2,2440.8,0.40952]
[1751010966470,3.9295,2441.2,2440.9,0.6641]
[1751010966672,2.39602661,2441.1,2440.9,0.6641]
[1751010966870,4.69073314,2441.1,2440.9,0.6641]
[1751010967077,4.28124314,2441.1,2440.7,0.7074]
[1751010967274,2.95754314,2440.9,2440.7,0.7074]
[1751010967475,3.36706314,2440.9,2440.7,0.7074]
[1751010967876,1.09212,2440.8,2440.7,31.505]
[1751010968077,1.9978,2440.8,2440.7,31.505]
[1751010968277,1.9978,2440.8,2440.4,3.919]
[1751010968475,2.95754314,2440.5,2440.4,10.80759]
[1751010968680,2.95754314,2440.5,2440.4,35.423]
[1751010970178,2.95754314,2440.5,2440.4,34.7118]
[1751010970179,3.36711314,2440.5,2440.4,34.7118]
[1751010970480,4.68231314,2440.5,2440.4,34.7118]
[1751010973088,4.68231314,2440.5,2440.4,6.479]
[1751010973384,4.68231314,2440.5,2440.4,31.504]
[1751010973785,4.27274314,2440.5,2440.4,31.504]
[1751010974083,2.95754314,2440.5,2440.4,31.504]
[1751010974988,4.44119015,2440.5,2440.4,31.504]
[1751010975186,4.03162015,2440.5,2440.4,31.504]
[1751010976189,2.95754314,2440.5,2440.4,31.504]
[1751010977486,3.36711314,2440.5,2440.4,31.496]
[1751010977684,2.95754314,2440.5,2440.4,31.496]
[1751010978895,1.83894,2440.7,2440.4,31.496]
[1751010979094,1.48296752,2440.6,2440.4,31.496]
[1751010979390,2.95754314,2440.7,2440.4,31.496]
[1751010979592,1.48294151,2440.6,2440.4,31.496]
[1751010979793,0.40956,2440.6,2440.4,31.496]
[1751010979985,1.86736,2440.6,2440.4,31.496]
[1751010980189,1.4578,2440.6,2440.4,31.496]
[1751010981398,3.36708314,2440.7,2440.4,31.496]
[1751010981588,1.07335359,2440.6,2440.4,31.90558]
[1751010981789,3.36708314,2440.7,2440.4,31.90558]
[1751010981984,1.07334558,2440.6,2440.5,0.40957]
[1751010982291,0.6826,2440.8,2440.5,0.40957]
[1751010982491,1.07333698,2440.7,2440.6,29.05519314]
[1751010982699,3.8859,2441.2,2440.6,35.11864314]
[1751010983000,3.8859,2441.2,2440.8,3.61731]
[1751010983293,0.40947,2441.1,2440.9,31.495]
[1751010983790,0.40948,2441.0,2440.9,31.495]
[1751010984089,4.73342314,2441.1,2440.9,31.495]
[1751010984994,4.73341314,2441.1,2441.0,25.02]
[1751010985194,4.32394314,2441.1,2441.0,25.02]
[1751010985387,4.73340314,2441.1,2441.0,25.02]
[1751010990996,0.40946,2441.1,2441.0,25.02]
[1751010991187,3.36700314,2441.1,2441.0,25.02]
[1751010991789,4.79090314,2441.1,2441.0,25.02]
[1751010992793,0.40948,2441.0,2440.9,6.472]
[1751010993095,0.40948,2441.0,2440.9,31.487]
[1751010994396,1.81548,2441.0,2440.9,31.487]
[1751010994599,4.77302314,2441.0,2440.9,31.487]
[1751010995095,3.36702314,2441.0,2440.9,31.487]
[1751010996097,0.40948,2441.0,2440.9,31.487]
[1751010997491,0.40948,2441.0,2440.8,3.61731]
[1751010997693,0.40948,2441.0,2440.9,31.485]
[1751011000102,0.40948,2441.0,2440.8,3.2078]
[1751011000402,0.40948,2441.0,2440.9,31.484]
[1751011000600,0.40948,2441.0,2440.8,3.61731]
[1751011000904,0.40948,2441.0,2440.9,31.483]
[1751011001197,0.40948,2441.1,2440.9,31.483]
[1751011001400,2.95754314,2441.4,2441.0,0.40948]
[1751011001702,0.40945,2441.2,2441.1,25.011]
[1751011002106,0.40945,2441.3,2441.1,25.011]
[1751011002597,5.05494314,2441.4,2441.1,25.011]
[1751011002598,1.06790894,2441.2,2441.1,26.11426]
[1751011002804,0.7201,2441.6,2441.2,0.6832]
[1751011003005,0.40942,2441.4,2441.3,25.01]
[1751011003207,1.06782537,2441.4,2441.3,25.01]
[1751011003403,1.47723537,2441.4,2441.3,25.01]
[1751011003706,1.06782537,2441.4,2441.3,25.01]
[1751011005098,2.43578421,2442.1,2441.3,25.01]
[1751011005299,0.52796,2441.9,2441.7,3.2078]
[1751011005511,0.52796,2441.9,2441.8,25.6957]
[1751011005706,0.52796,2441.9,2441.8,25.29645874]
[1751011007704,0.52796,2441.9,2441.8,0.28745874]
[1751011007905,0.40936,2441.7,2441.6,25.007]
[1751011008113,3.36690314,2441.7,2441.6,25.007]
[1751011010109,0.4094,2441.5,2441.4,3.8804]
[1751011010309,6.16534314,2441.5,2441.0,7.8084]
[1751011010509,3.61725,2441.2,2441.1,0.723]
[1751011010712,6.57479314,2441.2,2441.1,25.726]
[1751011010907,6.57479314,2441.2,2441.1,25.003]
[1751011011109,0.40948,2441.0,2440.9,0.723]
[1751011011305,3.36702314,2441.0,2440.9,32.189]
[1751011012205,0.4095,2440.9,2440.8,3.2078]
[1751011012413,0.40951,2440.8,2440.7,6.463]
[1751011012716,0.40951,2440.8,2440.7,31.465]
[1751011013810,2.95754314,2440.8,2440.7,31.465]
[1751011014111,3.36705314,2440.8,2440.7,31.465]
[1751011014309,2.95754314,2440.8,2440.7,31.465]
[1751011016515,2.95754314,2440.8,2440.6,0.40954]
[1751011016812,2.95754314,2440.8,2440.7,25.003]
[1751011017614,3.36705314,2440.8,2440.7,25.003]
[1751011018013,2.95754314,2440.8,2440.7,25.003]
[1751011018213,3.36705314,2440.8,2440.7,25.003]
[1751011018515,2.95754314,2440.8,2440.7,25.003]
[1751011019015,3.36705314,2440.8,2440.7,25.003]
[1751011019413,2.95754314,2440.8,2440.7,25.003]
[1751011019910,3.36705314,2440.9,2440.7,25.41253]
[1751011020110,2.95754314,2440.9,2440.7,26.85913]
[1751011020310,3.36705314,2440.9,2440.7,26.4496]
[1751011020813,0.40952,2440.8,2440.7,26.4496]
[1751011021014,0.40952,2440.8,2440.7,25.003]
[1751011021412,3.36705314,2440.9,2440.7,25.41253]
[1751011021911,0.40952,2440.8,2440.7,25.003]
[1751011022417,3.36705314,2440.9,2440.7,25.41253]
[1751011022618,0.40952,2440.8,2440.7,25.003]
[1751011022917,3.36705314,2440.9,2440.7,25.41253]
[1751011023105,0.40952,2440.8,2440.7,25.003]
[1751011026418,0.40953,2440.7,2440.6,6.464]
[1751011026614,0.40953,2440.7,2440.6,31.465]
[1751011026816,3.36707314,2440.7,2440.6,31.465]
[1751011027014,3.36707314,2440.7,2440.5,4.34246]
[1751011027214,0.40955,2440.6,2440.5,10.3979]
[1751011027415,0.40955,2440.6,2440.5,35.3989]
[1751011028217,3.36708314,2440.7,2440.5,35.80847]
[1751011028419,0.40955,2440.6,2440.5,35.80847]
[1751011028820,0.40955,2440.6,2440.5,35.3989]
[1751011029020,3.36708314,2440.7,2440.5,35.80847]
[1751011029212,0.40955,2440.6,2440.5,35.80847]
[1751011029411,3.36708314,2440.7,2440.5,35.80847]
[1751011030225,0.40955,2440.6,2440.5,35.3989]
[1751011031618,3.62374314,2440.7,2440.2,6.465]
[1751011031619,0.40959,2440.4,2440.2,6.465]
[1751011031813,3.62374314,2440.3,2440.2,6.465]
[1751011032021,3.62374314,2440.3,2440.2,31.464]
[1751011032317,3.62374314,2440.3,2440.2,32.1389]
[1751011032524,3.62374314,2440.3,2440.2,32.54852]
[1751011032820,3.62374314,2440.3,2440.2,24.999]
[1751011032821,4.03335314,2440.3,2440.2,24.999]
[1751011033022,4.03335314,2440.3,2440.2,25.6739]
[1751011033218,0.6641,2440.8,2440.2,25.6739]
[1751011033420,3.36711314,2440.5,2440.2,26.08351]
[1751011033621,2.95754314,2440.5,2440.2,27.51111]
[1751011033814,0.40959,2440.4,2440.2,27.51111]
[1751011034016,3.36711314,2440.5,2440.3,0.40959]
[1751011034316,0.40956,2440.6,2440.4,0.40958]
[1751011034516,0.40956,2440.6,2440.4,25.40858]
[1751011035020,4.03328314,2440.7,2440.5,0.40956]
[1751011035320,3.36708314,2440.7,2440.5,0.40956]
[1751011035543,3.36708314,2440.7,2440.6,0.7125]
[1751011036422,4.42840816,2440.7,2440.6,0.7125]
[1751011037321,1.06132502,2440.7,2440.6,26.12105]
[1751011037626,7.29359314,2441.2,2440.9,0.40949]
[1751011037819,1.06150591,2441.1,2441.0,0.6807]
[1751011038123,1.06150591,2441.1,2441.0,1.09018]
[1751011038520,1.06150591,2441.1,2441.0,2.52548]
[1751011039026,1.47097591,2441.1,2441.0,2.116]
[1751011040222,1.47097591,2441.1,2441.0,0.6807]
[1751011043817,1.06150591,2441.1,2441.0,7.54818]
[1751011044017,1.06150591,2441.1,2441.0,8.95828]
[1751011044324,3.36699314,2441.2,2441.0,8.95828]
[1751011044717,0.40944,2441.3,2441.1,0.40946]
[1751011045827,0.40945,2441.2,2441.0,8.95827]
[1751011046027,3.36699314,2441.2,2441.0,8.95827]
[1751011046522,0.40947,2441.1,2441.0,7.1387]
[1751011046723,0.40947,2441.1,2441.0,32.1317]
[1751011047226,0.40947,2441.1,2441.0,25.6737]
[1751011049225,0.40947,2441.1,2441.0,24.993]
[1751011049428,0.40948,2441.0,2440.9,0.7073]
[1751011049621,3.36702314,2441.0,2440.9,32.1553]
[1751011049822,0.40948,2441.0,2440.9,32.1553]
[1751011050022,3.36702314,2441.0,2440.9,32.1553]
[1751011050234,3.36702314,2441.0,2440.9,31.448]
[1751011050427,0.4095,2440.9,2440.8,3.2078]
[1751011050621,1.1339,2440.9,2440.8,34.6548]
[1751011051922,1.1339,2440.9,2440.8,35.06332]
[1751011052223,1.1339,2440.9,2440.8,34.6538]
[1751011053829,1.1339,2440.9,2440.8,28.1968]
[1751011055534,1.1339,2440.9,2440.8,3.2078]
[1751011055831,1.1339,2440.9,2440.8,28.1958]
[1751011056025,1.1339,2440.9,2440.8,3.2078]
[1751011056231,0.40955,2440.6,2440.5,7.1826]
[1751011056533,3.36709314,2440.6,2440.5,32.1696]
[1751011056727,3.36709314,2440.6,2440.5,6.457]
[1751011056934,0.4096,2440.3,2440.2,6.457]
[1751011057138,6.57494314,2440.3,2440.2,6.457]
[1751011057430,6.57494314,2440.3,2440.2,31.443]
[1751011058433,1.0663003,2440.3,2440.2,34.81016314]
[1751011058628,3.2078,2440.6,2440.4,0.40958]
[1751011058830,3.2078,2440.6,2440.5,24.986]
[1751011059030,4.27371622,2440.6,2440.5,24.986]
[1751011059429,1.47546622,2440.6,2440.5,24.986]
[1751011061234,4.03639314,2440.7,2440.5,24.986]
[1751011061735,4.03639314,2440.7,2440.5,25.39557]
[1751011061933,6.16534314,2440.9,2440.5,31.444]
[1751011062234,3.2078,2440.9,2440.7,0.40952]
[1751011062434,3.2078,2440.9,2440.8,25.39752]
[1751011062635,4.27395121,2440.9,2440.8,24.988]
[1751011062837,1.06615121,2440.9,2440.8,24.988]
[1751011063137,3.36704314,2440.9,2440.8,24.988]
[1751011067839,2.95754314,2440.9,2440.8,24.988]
[1751011068140,0.40948,2441.0,2440.8,25.3975]
[1751011068342,0.4095,2440.9,2440.8,31.438]
[1751011068542,3.36703314,2441.0,2440.8,31.438]
[1751011069039,0.4095,2440.9,2440.8,31.438]
[1751011069240,2.95754314,2441.0,2440.8,31.84752]
[1751011069443,3.36703314,2441.0,2440.8,31.84752]
[1751011069751,0.4095,2440.9,2440.8,31.438]
[1751011070047,3.36703314,2441.0,2440.8,31.438]
[1751011070238,0.4095,2440.9,2440.8,31.438]
[1751011070439,3.36703314,2441.0,2440.8,31.84752]
[1751011070643,0.4095,2440.9,2440.8,31.438]
[1751011071145,3.36703314,2441.0,2440.8,31.84752]
[1751011072243,3.36703314,2441.0,2440.9,0.4095]
[1751011072438,3.2078,2441.3,2440.8,34.39554314]
[1751011072439,3.61725,2441.3,2440.8,34.39554314]
[1751011072645,1.06651583,2441.2,2441.1,0.40947]
[1751011072850,3.61725,2441.3,2441.1,31.84147]
[1751011074065,3.2078,2441.3,2441.2,0.40945]
[1751011074263,4.68361311,2441.3,2441.1,31.84145]
[1751011074457,3.2078,2441.3,2441.2,0.40945]
[1751011074658,4.27416274,2441.3,2441.2,0.40945]
[1751011074858,1.06636274,2441.3,2441.2,0.40945]
[1751011075059,2.95754314,2441.4,2441.3,0.40943]
[1751011075364,4.43330097,2441.4,2441.2,2.54844]
[1751011075566,3.36696314,2441.4,2441.2,2.54844]
[1751011075861,2.95754314,2441.4,2441.2,2.54844]
[1751011076265,2.95754314,2441.4,2441.3,0.40943]
[1751011076562,0.7112,2441.7,2441.4,0.4094]
[1751011076764,4.02996282,2441.6,2441.4,0.4094]
[1751011076964,1.07241968,2441.5,2441.4,0.4094]
[1751011077264,2.95754314,2441.6,2441.5,0.4094]
[1751011077561,4.02998517,2441.6,2441.5,0.4094]
[1751011077770,4.02998517,2441.6,2441.4,0.40941]
[1751011078063,2.95754314,2441.6,2441.4,0.40941]
[1751011078264,2.95754314,2441.6,2441.5,0.4094]
[1751011078861,3.36692314,2441.6,2441.4,0.40941]
[1751011080266,2.95754314,2441.6,2441.5,0.4094]
[1751011080465,4.05260314,2441.8,2441.6,0.40938]
[1751011080670,0.11862,2441.9,2441.7,3.2078]
[1751011080970,0.11862,2441.9,2441.7,3.61717]
[1751011080971,1.071102,2441.8,2441.7,3.61717]
[1751011081267,3.48550314,2441.9,2441.7,3.2078]
[1751011081470,0.7228,2441.8,2441.7,3.2078]
[1751011081668,1.13215,2441.8,2441.7,3.2078]
[1751011082070,0.7228,2441.8,2441.7,3.2078]
[1751011082264,0.11862,2441.9,2441.7,3.2078]
[1751011082464,2.95754314,2441.8,2441.7,3.2078]
[1751011082669,2.95754314,2441.8,2441.7,3.61717]
[1751011083574,3.36689314,2441.8,2441.7,3.2078]
[1751011083770,2.95754314,2441.8,2441.7,3.2078]
[1751011084368,3.36689314,2441.8,2441.7,3.2078]
[1751011084572,2.95754314,2441.8,2441.7,3.2078]
[1751011084869,2.95754314,2441.8,2441.7,3.61717]
[1751011085976,0.11862,2441.9,2441.8,0.40935]
[1751011086165,0.11862,2441.9,2441.8,2.42205]
[1751011087265,1.4176,2442.6,2441.8,8.03605]
[1751011087266,2.95754314,2442.6,2441.8,8.03605]
[1751011087466,1.06783435,2442.5,2442.4,0.40925]
[1751011087673,1.06783435,2442.5,2442.3,0.40925]
[1751011087866,4.02537749,2442.4,2442.3,0.6828]
[1751011088061,2.95754314,2442.4,2442.3,0.6828]
[1751011088472,4.0255288,2442.4,2442.3,0.6828]
[1751011088775,4.0255288,2442.4,2442.3,1.09207]
[1751011089183,2.95754314,2442.4,2442.3,1.09207]
[1751011089479,3.36679314,2442.4,2442.3,0.6828]
[1751011089980,3.36679314,2442.4,2442.2,3.2078]
[1751011090278,1.07457,2442.3,2442.2,3.2078]
[1751011090778,0.6653,2442.3,2442.2,3.2078]
[1751011091180,1.07457,2442.3,2442.2,3.2078]
[1751011091381,1.07458,2442.3,2442.1,0.7034]
[1751011091579,2.95754314,2442.2,2442.1,1.1127]
[1751011096186,2.95754314,2442.4,2442.3,0.40926]
[1751011096783,3.2078,2442.6,2442.1,0.7034]
[1751011096985,6.16534314,2442.6,2442.2,1.3788]
[1751011097182,6.57456314,2442.6,2442.4,0.40924]
[1751011097484,6.16534314,2442.6,2442.4,0.40924]
[1751011097886,6.16534314,2442.6,2442.2,1.3788]
[1751011098094,6.16534314,2442.6,2442.4,0.40924]
[1751011098580,6.57456314,2442.6,2442.4,0.40924]
[1751011099484,6.16534314,2442.6,2442.5,0.40923]
[1751011100086,3.2078,2442.6,2442.5,0.40923]
[1751011100384,6.16534314,2442.6,2442.5,0.40923]
[1751011100798,0.6783,2442.7,2442.6,0.40922]
[1751011101086,0.6913,2442.9,2442.8,0.40918]
[1751011102191,5.7245,2443.3,2442.8,3.2078]
[1751011102385,2.95754314,2443.1,2443.0,0.40914]
[1751011102692,3.36669314,2443.1,2442.8,3.61697]
[1751011103192,2.95754314,2442.9,2442.8,3.61697]
[1751011103388,3.36671314,2442.9,2442.8,3.2078]
[1751011103594,2.95754314,2442.9,2442.8,3.2078]
[1751011104193,4.29394314,2442.9,2442.8,3.61698]
[1751011105796,2.95754314,2442.9,2442.8,3.61698]
[1751011105994,2.95754314,2443.1,2443.0,0.40915]
[1751011106287,2.95754314,2443.1,2442.8,3.2078]
[1751011106492,2.95754314,2443.1,2442.9,0.40916]
[1751011106895,2.95754314,2443.1,2442.8,3.61698]
[1751011107194,2.95754314,2442.9,2442.8,3.61698]
[1751011108393,0.6913,2443.2,2443.0,0.40914]
[1751011108592,2.95754314,2443.1,2443.0,0.40914]
[1751011110099,2.95754314,2443.1,2442.9,0.40915]
[1751011110298,3.36668314,2443.1,2442.8,3.61697]
[1751011110499,2.95754314,2442.9,2442.8,3.61697]
[1751011111000,1.3826,2443.0,2442.9,0.40916]
[1751011111200,4.34014314,2443.0,2442.9,0.40916]
[1751011112104,2.95754314,2443.0,2442.9,0.40916]